fUST/lending_fUST_20260226
["ID","MTS","AMOUNT","RATE_DAILY","PERIOD"]
[406673346,1772062232233,-500.0,0.00017929,2]
[406673349,1772062232243,-97.75388957,0.00017929,2]
[406673352,1772062232254,-402.24611043,0.00017929,2]
[406673354,1772062232264,-500.0,0.00017929,2]
[406673356,1772062232274,-500.0,0.00017929,2]
[406673358,1772062232283,-191.00823752,0.00017929,2]
[406673390,1772062238480,-500.0,0.00017929,2]
[406673391,1772062238491,-12927.0692369,0.00017932,2]
[406673392,1772062238501,-1000.0,0.00018,2]
[406673393,1772062238511,-200.0,0.00018062,3]
[406673394,1772062238521,-705.4269763,0.0001814,2]
[406673395,1772062238531,-150.0,0.00018149,2]
[406673396,1772062238540,-150.0,0.00018204,2]
[406673397,1772062238553,-150.0,0.00018259,2]
[406673398,1772062238563,-150.0,0.00018313,2]
[406673399,1772062238572,-150.0,0.00018368,2]
[406673400,1772062238581,-250.0,0.00018423,2]
[406673401,1772062238591,-331.88367723,0.00018699,2]
[406673402,1772062238601,-209.793995,0.00018761,2]
[406673403,1772062238612,-5924.435,0.00018767,2]
[406673404,1772062238623,-3662.51462261,0.00018875,5]
[406673405,1772062238632,-2483.60571941,0.00018875,5]
[406673406,1772062238642,-594.36627514,0.00018875,5]
[406673407,1772062238652,-194.72792766,0.00018928,2]
[406673408,1772062238663,-553.64373807,0.00018928,2]
[406673409,1772062238673,-500.0,0.00018928,2]
[406673410,1772062238682,-500.0,0.00018928,2]
[406673411,1772062238693,-250.0,0.00018928,2]
[406673412,1772062238702,-250.0,0.00018928,2]
[406673413,1772062238711,-500.0,0.00018928,2]
[406673414,1772062238721,-250.0,0.00018928,2]
[406673415,1772062238731,-500.0,0.00018928,2]
[406673416,1772062238740,-500.0,0.00018928,2]
[406673417,1772062238750,-500.0,0.00018928,2]
[406673418,1772062238759,-500.0,0.00018928,2]
[406673419,1772062238769,-500.0,0.00018928,2]
[406673420,1772062238778,-500.0,0.00018928,2]
[406673421,1772062238788,-26.87564134,0.00018928,2]
[406673422,1772062239518,-2552.30220849,0.00018928,2]
[406673423,1772062239540,-194.72792766,0.00018928,2]
[406673424,1772062239556,-3.88237479,0.00018928,2]
[406673425,1772062239580,-496.11762521,0.00018928,2]
[406673426,1772062239600,-500.0,0.00018928,2]
[406673427,1772062239619,-201.93286099,0.00018928,2]
[406673428,1772062239637,-250.0,0.00018928,2]
[406673429,1772062239656,-382.58279531,0.00018928,2]
[406673430,1772062239670,-500.0,0.00018928,2]
[406673431,1772062239686,-500.0,0.00018928,2]
[406673432,1772062239704,-209.40437684,0.00018928,2]
[406673433,1772062239724,-250.0,0.00018928,2]
[406673434,1772062239740,-500.0,0.00018928,2]
[406673435,1772062239755,-500.0,0.00018928,2]
[406673436,1772062239773,-248.22287318,0.00018928,2]
[406673437,1772062239786,-216.9827472,0.00018928,2]
[406673438,1772062239876,-283.0172528,0.00018928,2]
[406673439,1772062239892,-217.15233878,0.00018928,2]
[406673440,1772062239907,-500.0,0.00018928,2]
[406673441,1772062239922,-225.18697532,0.00018928,2]
[406673442,1772062239937,-500.0,0.00018928,2]
[406673443,1772062239952,-233.51889341,0.00018928,2]
[406673444,1772062239967,-500.0,0.00018928,2]
[406673445,1772062239982,-242.15909246,0.00018928,2]
[406673446,1772062239997,-500.0,0.00018928,2]
[406673447,1772062240011,-120.07652084,0.00018928,2]
[406673658,1772062242372,-131.04245804,0.00018928,2]
[406673659,1772062242382,-260.4103811,0.00018928,2]
[406673661,1772062242391,-270.0455652,0.00018928,2]
[406673664,1772062242401,-280.03725112,0.00018928,2]
[406673666,1772062242414,-290.39862941,0.00018928,2]
[406673668,1772062242423,-500.0,0.00018928,2]
[406673670,1772062242433,-301.1433787,0.00018928,2]
[406673672,1772062242442,-500.0,0.00018928,2]
[406673674,1772062242451,-199.95398477,0.00018928,2]
[406673676,1772062242460,-109.7234435,0.00018928,2]
[406673678,1772062242472,-390.2765565,0.00018928,2]
[406673680,1772062242480,-105.5636885,0.00018928,2]
[406673683,1772062242507,-394.4363115,0.00018928,2]
[406673685,1772062242517,-500.0,0.00018928,2]
[406673687,1772062242527,-500.0,0.00018928,2]
[406673689,1772062242536,-1957.856,0.00018928,2]
[406673691,1772062242547,-782.17836808,0.00018966,2]
[406673914,1772062246771,-227.63456182,0.00018966,2]
[406673915,1772062246781,-2030.296672,0.00018983,2]
[406673916,1772062246790,-194.05119829,0.00018999,2]
[406673917,1772062246800,-500.0,0.00018999,2]
[406673918,1772062246810,-528.93194691,0.00018999,2]
[406673919,1772062246821,-272.66323698,0.00019,2]
[406673922,1772062322928,410.70061666,0.00013699,2]
[406673923,1772062322947,89.29938334,0.00013699,2]
[406673924,1772062323253,500.0,0.00013699,2]
[406673925,1772062323363,438.62965464,0.00013273,2]
[406673926,1772062323386,61.37034536,0.00013273,2]
[406673927,1772062323922,500.0,0.00013273,2]
[406673928,1772062326091,500.0,0.00013273,2]
[406673929,1772062326491,65.65987328,0.00013273,2]
[406673932,1772062680204,199.83,9.99e-05,2]
[406673933,1772062680475,199.82,9.99e-05,2]
[406673939,1772063137112,-300.0,0.00013271,2]
[406673940,1772063137136,-300.0,0.00013271,2]
[406673941,1772063137157,-300.0,0.00013271,2]
[406673942,1772063137178,-151.5461,0.00013272,14]
[406673943,1772063137200,-608.0,0.00013272,2]
[406673944,1772063137222,-78.81506966,0.00013272,2]
[406673945,1772063232176,-300.0,0.00013271,2]
[406673946,1772063232200,-159.14836867,0.00013272,2]
[406673947,1772063232226,-300.0,0.00013272,2]
[406673948,1772063232247,-163.0,0.00013272,2]
[406673949,1772063232268,-216.24246471,0.00013272,2]
[406673950,1772063238099,-436.32138909,0.00013272,2]
[406673959,1772063345098,-547.4361462,0.00013272,2]
[406673960,1772063345120,-300.0,0.00013272,2]
[406673961,1772063345143,-233.20416956,0.00013272,2]
[406673962,1772063345164,-212.78231083,0.00013273,2]
[406673963,1772063345185,-363.4637343,0.00013273,2]
[406673964,1772063345207,-308.00238971,0.00013273,2]
[406673965,1772063345241,-191.99761029,0.00013273,2]
[406673966,1772063345263,-500.0,0.00013273,2]
[406673967,1772063345283,-500.0,0.00013273,2]
[406673968,1772063345309,-500.0,0.00013273,2]
[406673969,1772063345335,-500.0,0.00013273,2]
[406673970,1772063345356,-500.0,0.00013273,2]
[406673971,1772063345376,-500.0,0.00013273,2]
[406673972,1772063345396,-500.0,0.00013273,2]
[406673973,1772063345416,-500.0,0.00013273,2]
[406673974,1772063345436,-501.85347021,0.00013273,2]
[406673975,1772063345455,-500.0,0.00013273,2]
[406673976,1772063345475,-500.0,0.00013273,2]
[406673977,1772063345496,-500.0,0.00013273,2]
[406673978,1772063345516,-500.0,0.00013273,2]
[406673979,1772063345538,-500.0,0.00013273,2]
[406673980,1772063345560,-401.07702547,0.00013273,2]
[406673981,1772063345584,-500.0,0.00013273,2]
[406673982,1772063345604,-500.0,0.00013273,2]
[406673983,1772063345622,-500.0,0.00013273,2]
[406673984,1772063345641,-358.02021966,0.00013273,2]
[406673985,1772063345661,-200.0,0.00013459,2]
[406673986,1772063345683,-300.0,0.00013537,2]
[406673987,1772063345706,-300.0,0.00013537,2]
[406673988,1772063345728,-300.0,0.00013537,2]
[406673989,1772063345750,-300.0,0.00013537,2]
[406673990,1772063345777,-300.0,0.00013537,2]
[406673991,1772063345800,-300.0,0.00013537,2]
[406673992,1772063345824,-300.0,0.00013537,2]
[406673993,1772063345848,-300.0,0.00013537,2]
[406673994,1772063345869,-300.0,0.00013673,2]
[406673995,1772063345890,-500.0,0.00013699,2]
[406673996,1772063345910,-500.0,0.00013699,2]
[406673997,1772063345931,-500.0,0.00013699,2]
[406673998,1772063345951,-500.0,0.00013699,2]
[406673999,1772063345972,-500.0,0.00013699,2]
[406674000,1772063345993,-448.09189083,0.00013699,2]
[406674001,1772063346013,-500.0,0.00013699,2]
[406674002,1772063346034,-503.49806099,0.00013699,2]
[406674003,1772063346061,-500.0,0.00013699,2]
[406674004,1772063346082,-500.0,0.00013699,2]
[406674005,1772063346103,-52.87284255,0.00013699,2]
[406674006,1772063358151,-500.0,0.00013273,2]
[406674007,1772063358173,-500.0,0.00013273,2]
[406674008,1772063361106,-447.12715745,0.00013699,2]
[406674009,1772063361128,-500.0,0.00013699,2]
[406674010,1772063361150,-500.0,0.00013699,2]
[406674011,1772063361171,-500.0,0.00013699,2]
[406674012,1772063361191,-500.0,0.00013699,2]
[406674013,1772063361211,-500.0,0.00013699,2]
[406674014,1772063361232,-621.052328,0.00013699,2]
[406674015,1772063361252,-242.98688795,0.00013699,2]
[406674016,1772063361271,-500.0,0.00013699,2]
[406674017,1772063361290,-170.60208772,0.00013699,2]
[406674018,1772063361311,-500.0,0.00013699,2]
[406674019,1772063361331,-300.44314931,0.00013699,2]
[406674020,1772063361351,-500.0,0.00013699,2]
[406674021,1772063361371,-500.0,0.00013699,2]
[406674022,1772063361390,-500.0,0.00013699,2]
[406674023,1772063361410,-500.0,0.00013699,2]
[406674024,1772063361430,-389.559598,0.00013821,2]
[406674025,1772063361450,-209.7231,0.00014151,2]
[406674026,1772063361470,-192.97257909,0.00014247,2]
[406674027,1772063361490,-389.559598,0.00014403,2]
[406674028,1772063361510,-497.8558082,0.00014549,2]
[406674029,1772063361530,-420.0,0.0001455,2]
[406674030,1772063361551,-303.0,0.00014551,2]
[406674031,1772063361575,-210.0,0.00014599,2]
[406674032,1772063361597,-389.559598,0.00014985,2]
[406674033,1772063361620,-1824.0,0.00015,2]
[406674034,1772063361642,-275.18092009,0.00015272,2]
[406674035,1772063361662,-389.559598,0.00015567,2]
[406674036,1772063361684,-277.67922081,0.0001605,2]
[406674037,1772063361704,-505.1538,0.00016117,120]
[406674038,1772063361724,-389.559598,0.00016148,2]
[406674039,1772063361744,-389.559598,0.0001673,2]
[406674040,1772063361765,-317.15767061,0.00017272,2]
[406674041,1772063361789,-500.0,0.00017929,2]
[406674042,1772063361812,-361.72402766,0.00017929,2]
[406674043,1772063404403,500.0,0.00013699,2]
[406674044,1772063404533,480.0,0.00013699,2]
[406674045,1772063404555,20.0,0.00013699,2]
[406674046,1772063408298,500.0,0.00013273,2]
[406674047,1772063408329,500.0,0.00013821,2]
[406674048,1772063408360,132.38760997,0.00013273,2]
[406674049,1772063408381,367.61239003,0.00013273,2]
[406674050,1772063408432,502.44799837,0.00013273,2]
[406674051,1772063408458,183.87590392,0.00013273,2]
[406674052,1772063408479,316.12409608,0.00013273,2]
[406674053,1772063408545,381.94608599,0.00013273,2]
[406674110,1772063432252,-118.05391401,0.00013273,2]
[406674111,1772063432262,-200.13511344,0.00013821,2]
[406674112,1772063432271,-286.65597234,0.00017929,2]
[406674114,1772063432280,-91.07401167,0.00017929,2]
[406674129,1772063438857,-59.92598833,0.00017929,2]
[406674130,1772063438872,-151.0,0.00017929,2]
[406674131,1772063438882,-151.0,0.00017929,2]
[406674132,1772063438892,-268.90503711,0.00017929,2]
[406674133,1772063438903,-500.0,0.00017931,2]
[406674134,1772063438912,-1761.4565358,0.00017984,2]
[406674135,1772063438922,-198.575649,0.00018332,2]
[406674136,1772063438933,-200.0,0.00018418,4]
[406674137,1772063438943,-1957.856,0.00018695,2]
[406674138,1772063438952,-205.52978782,0.00018695,2]
[406674139,1772063438962,-194.72792766,0.00018695,2]
[406674140,1772063438973,-201.93286099,0.00018695,2]
[406674141,1772063438983,-209.40437684,0.00018695,2]
[406674142,1772063438992,-217.15233878,0.00018695,2]
[406674143,1772063439002,-225.18697532,0.00018695,2]
[406674144,1772063439013,-233.51889341,0.00018695,2]
[406674145,1772063439023,-242.15909246,0.00018695,2]
[406674146,1772063439033,-251.11897888,0.00018695,2]
[406674147,1772063439043,-260.4103811,0.00018695,2]
[406674148,1772063439232,-270.0455652,0.00018695,2]
[406674149,1772063439247,-280.03725112,0.00018695,2]
[406674150,1772063439256,-668.65185757,0.00018695,2]
[406674151,1772063439266,-290.39862941,0.00018695,2]
[406674152,1772063439276,-500.0,0.00018695,2]
[406674153,1772063439285,-301.1433787,0.00018695,2]
[406674154,1772063439295,-345.95518701,0.00018695,2]
[406674155,1772063439307,-154.04481299,0.00018695,2]
[406674156,1772063439317,-500.0,0.00018695,2]
[406674157,1772063439327,-500.0,0.00018695,2]
[406674158,1772063439337,-500.0,0.00018695,2]
[406674159,1772063439346,-500.0,0.00018695,2]
[406674160,1772063439356,-500.0,0.00018695,2]
[406674161,1772063439367,-500.0,0.00018695,2]
[406674162,1772063439378,-500.0,0.00018695,2]
[406674163,1772063439388,-2579.17784983,0.00018695,2]
[406674164,1772063439397,-500.0,0.00018695,2]
[406674165,1772063439407,-500.0,0.00018695,2]
[406674166,1772063439417,-500.0,0.00018695,2]
[406674167,1772063439427,-500.0,0.00018695,2]
[406674168,1772063439437,-500.0,0.00018695,2]
[406674169,1772063439447,-500.0,0.00018695,2]
[406674170,1772063439457,-500.0,0.00018695,2]
[406674171,1772063439466,-500.0,0.00018695,2]
[406674172,1772063439476,-500.0,0.00018695,2]
[406674173,1772063439485,-500.0,0.00018695,2]
[406674174,1772063439495,-500.0,0.00018695,2]
[406674175,1772063439504,-2030.296672,0.0001875,2]
[406674176,1772063439514,-1561.50492148,0.00018805,2]
[406674177,1772063439527,-543.91272738,0.00018805,2]
[406674178,1772063439537,-2587.80635291,0.00018814,2]
[406674179,1772063439546,-2183.31810187,0.0001886,2]
[406674180,1772063439556,-834.45193547,0.00018875,5]
[406674181,1772063439565,-2377.46510055,0.00018875,5]
[406674182,1772063439574,-1615.99831163,0.00018904,2]
[406674183,1772063439586,-2116.58250564,0.00018904,2]
[406674184,1772063439596,-2391.24296602,0.00018904,2]
[406674185,1772063439606,-2264.10087164,0.00018915,2]
[406674186,1772063439616,-1909.2035175,0.0001894,2]
[406674187,1772063439626,-1253.4265511,0.0001894,2]
[406674188,1772063439636,-2347.87260389,0.0001897,2]
[406674189,1772063439646,-932.54,0.00018993,2]
[406674190,1772063439656,-727.33676302,0.00019,2]
[406674191,1772063439665,-2434.74389024,0.00019025,2]
[406674192,1772063439675,-2524.82941417,0.0001908,2]
[406674193,1772063439684,-2618.2481025,0.00019135,2]
[406674194,1772063439694,-500.0,0.00019166,2]
[406674195,1772063439704,-958.84743925,0.0001919,2]
[406674196,1772063439713,-500.0,0.00019221,2]
[406674197,1772063439723,-2674.60743027,0.00019243,2]
[406674198,1772063439732,-359.13442113,0.00019272,2]
[406674199,1772063439742,-161.0,0.0001938,120]
[406674200,1772063439752,-162.0,0.0001938,120]
[406674201,1772063439761,-162.0,0.0001938,120]
[406674202,1772063439772,-155.778,0.000194,2]
[406674203,1772063439782,-3304.0,0.00019486,2]
[406674204,1772063439791,-168.0,0.00019535,2]
[406674205,1772063439804,-500.0,0.00019562,2]
[406674206,1772063439813,-168.0,0.00019578,2]
[406674207,1772063439823,-3304.0,0.00019579,2]
[406674208,1772063439833,-1176.85543867,0.000196,2]
[406674209,1772063439842,-168.0,0.00019605,2]
[406674210,1772063439851,-3304.0,0.00019716,2]
[406674211,1772063439861,-2773.56790519,0.00019791,2]
[406674212,1772063439871,-180.30221526,0.00019799,2]
[406674213,1772063439881,-2388.43275293,0.000198,2]
[406674214,1772063439891,-500.0,0.00019828,2]
[406674215,1772063439901,-2388.43275293,0.00019829,2]
[406674216,1772063439911,-180.30221525,0.0001985,2]
[406674217,1772063439920,-530.671,0.00019858,2]
[406674218,1772063439931,-2388.43275293,0.00019858,2]
[406674220,1772063439940,-2388.43275293,0.00019887,2]
[406674221,1772063439950,-709.4683343,0.00019899,2]
[406674222,1772063439960,-1277.04300174,0.00019899,2]
[406674223,1772063439970,-365.21752912,0.00019899,2]
[406674224,1772063439981,-657.39155241,0.00019899,2]
[406674225,1772063439991,-2270.29866977,0.00019899,2]
[406674226,1772063440000,-180.30221525,0.000199,2]
[406674227,1772063440010,-306.48021141,0.00019922,2]
[406674228,1772063440019,-168.0,0.00019928,2]
[406674229,1772063440029,-1167.52739708,0.00019966,2]
[406674230,1772063440038,-524.5,0.0001999,3]
[406674231,1772063440048,-262.25,0.0001999,3]
[406674233,1772063440057,-786.76,0.0001999,3]
[406674234,1772063440067,-16817.44472011,0.0002,2]
[406674240,1772063440816,-514.17001931,0.0002,2]
[406674641,1772063447073,-500.0,0.00018695,2]
[406674642,1772063447083,-500.0,0.00018695,2]
[406674643,1772063447093,-500.0,0.00018695,2]
[406674644,1772063447103,-500.0,0.00018695,2]
[406674645,1772063447113,-500.0,0.00018695,2]
[406674646,1772063447123,-500.0,0.00018695,2]
[406674647,1772063447136,-34401.18561309,0.000198,2]
[406674648,1772063447147,-93818.50489415,0.0002,2]
[406674649,1772063447158,-3235.20906442,0.0002,120]
[406674650,1772063447168,-2000.0,0.0002,2]
[406674651,1772063447178,-373.86351765,0.0002,2]
[406674652,1772063447188,-8933.87093608,0.0002,120]
[406674653,1772063447198,-23000.0,0.0002,2]
[406674654,1772063447208,-203.9635079,0.0002,2]
[406674655,1772063447219,-1380.01994144,0.0002,3]
[406674656,1772063447229,-9331.16429241,0.0002,7]
[406674657,1772063447239,-814.20052407,0.0002,120]
[406674658,1772063447249,-344043.90485345,0.0002,2]
[406674659,1772063447302,-614.01708605,0.0002,2]
[406674661,1772063481595,417.207806,0.000136,30]
[406674662,1772063481620,951.602194,0.000136,30]
[406674677,1772064043445,-262.25,0.00012329,2]
[406674678,1772064043472,-594.0,0.00012329,2]
[406674679,1772064043499,-500.0,0.00013271,2]
[406674680,1772064043529,-500.0,0.00013271,2]
[406674681,1772064043557,-177.79041487,0.00013271,2]
[406674682,1772064043586,-500.0,0.00013271,2]
[406674683,1772064043615,-500.0,0.00013271,2]
[406674684,1772064043646,-500.0,0.00013271,2]
[406674685,1772064043897,-500.0,0.00013271,2]
[406674686,1772064073419,-300.0,0.0001327,2]
[406674687,1772064073450,-500.0,0.00013271,2]
[406674688,1772064073481,-500.0,0.00013271,2]
[406674689,1772064073513,-365.46844089,0.00013271,2]
[406674693,1772064284691,3000.0,0.00012,10]
[406674696,1772064345123,-199.93271915,0.00013171,2]
[406674698,1772064351546,-38.38412442,0.00013171,2]
[406674699,1772064351568,-153.00486036,0.00013172,2]
[406674700,1772064351588,-300.0,0.00013269,2]
[406674701,1772064351608,-300.0,0.00013269,2]
[406674702,1772064351629,-300.0,0.00013269,2]
[406674703,1772064351653,-298.16318099,0.00013269,2]
[406674704,1772064425138,-1089.1203206,0.0001317,2]
[406674705,1772064435103,-859.08808065,0.0001317,2]
[406674706,1772064445095,-316.12215759,0.0001317,2]
[406674707,1772064445127,-12.46130157,0.00013269,2]
[406674708,1772064446123,-822.41258491,0.00013269,2]
[406674712,1772064551284,-66.96293253,0.00013269,2]
[406674713,1772064551570,-300.0,0.00013269,2]
[406674714,1772064551594,-233.5505067,0.00013269,2]
[406674715,1772064551616,-500.0,0.0001327,2]
[406674716,1772064551639,-326.03808592,0.0001327,2]
[406674717,1772064551662,-500.0,0.0001327,2]
[406674718,1772064551685,-500.0,0.0001327,2]
[406674719,1772064551709,-500.0,0.0001327,2]
[406674720,1772064551731,-500.0,0.0001327,2]
[406674721,1772064551753,-500.0,0.0001327,2]
[406674722,1772064551775,-500.0,0.0001327,2]
[406674723,1772064551800,-500.0,0.0001327,2]
[406674724,1772064551824,-500.0,0.0001327,2]
[406674725,1772064551847,-500.0,0.0001327,2]
[406674726,1772064551869,-500.0,0.0001327,2]
[406674727,1772064551894,-500.0,0.0001327,2]
[406674728,1772064551918,-500.0,0.0001327,2]
[406674729,1772064551941,-500.0,0.0001327,2]
[406674730,1772064551965,-500.0,0.0001327,2]
[406674731,1772064551988,-500.0,0.0001327,2]
[406674732,1772064552010,-500.0,0.0001327,2]
[406674733,1772064552035,-650.0,0.0001327,2]
[406674734,1772064552058,-500.0,0.0001327,2]
[406674735,1772064552081,-500.0,0.0001327,2]
[406674736,1772064552104,-272.8543253,0.0001327,2]
[406674737,1772064552128,-500.0,0.0001327,2]
[406674738,1772064552154,-500.0,0.0001327,2]
[406674739,1772064552178,-500.0,0.0001327,2]
[406674740,1772064552202,-500.0,0.0001327,2]
[406674741,1772064552227,-500.0,0.0001327,2]
[406674742,1772064552250,-500.0,0.0001327,2]
[406674743,1772064552273,-500.0,0.0001327,2]
[406674744,1772064552295,-500.0,0.0001327,2]
[406674745,1772064552318,-500.0,0.0001327,2]
[406674746,1772064552341,-500.0,0.0001327,2]
[406674747,1772064552362,-500.0,0.0001327,2]
[406674748,1772064552390,-500.0,0.0001327,2]
[406674749,1772064552414,-500.0,0.0001327,2]
[406674750,1772064552440,-500.0,0.0001327,2]
[406674751,1772064552480,-500.0,0.0001327,2]
[406674752,1772064552523,-500.0,0.0001327,2]
[406674753,1772064552564,-500.0,0.0001327,2]
[406674754,1772064552604,-500.0,0.0001327,2]
[406674755,1772064552631,-500.0,0.0001327,2]
[406674756,1772064552655,-500.0,0.0001327,2]
[406674757,1772064552679,-500.0,0.0001327,2]
[406674758,1772064552701,-500.0,0.0001327,2]
[406674759,1772064552725,-500.0,0.0001327,2]
[406674760,1772064552748,-500.0,0.0001327,2]
[406674761,1772064552769,-500.0,0.0001327,2]
[406674762,1772064552791,-500.0,0.0001327,2]
[406674763,1772064552817,-500.0,0.0001327,2]
[406674764,1772064552841,-500.0,0.0001327,2]
[406674765,1772064552863,-500.0,0.0001327,2]
[406674766,1772064552887,-500.0,0.0001327,2]
[406674767,1772064552911,-500.0,0.0001327,2]
[406674768,1772064552937,-500.0,0.0001327,2]
[406674769,1772064552962,-500.0,0.0001327,2]
[406674770,1772064552985,-500.0,0.0001327,2]
[406674771,1772064553013,-500.0,0.0001327,2]
[406674772,1772064553037,-500.0,0.0001327,2]
[406674773,1772064553061,-500.0,0.0001327,2]
[406674774,1772064553087,-462.33595948,0.0001327,2]
[406674775,1772064553114,-695.81837055,0.0001327,2]
[406674776,1772064553147,-695.81837055,0.0001327,2]
[406674777,1772064553179,-695.81837055,0.0001327,2]
[406674778,1772064553207,-695.81837055,0.0001327,2]
[406674779,1772064553237,-695.81837055,0.0001327,2]
[406674780,1772064553265,-695.81837055,0.0001327,2]
[406674781,1772064553295,-695.81837055,0.0001327,2]
[406674782,1772064553325,-695.81837055,0.0001327,2]
[406674783,1772064553357,-695.81837055,0.0001327,2]
[406674784,1772064553385,-695.81837055,0.0001327,2]
[406674785,1772064553415,-695.81837055,0.0001327,2]
[406674786,1772064553439,-695.81837055,0.0001327,2]
[406674787,1772064553463,-695.81837055,0.0001327,2]
[406674788,1772064553487,-695.81837055,0.0001327,2]
[406674789,1772064553511,-695.81837055,0.0001327,2]
[406674790,1772064553535,-695.81837055,0.0001327,2]
[406674791,1772064553559,-695.81837055,0.0001327,2]
[406674792,1772064553583,-695.81837055,0.0001327,2]
[406674793,1772064553607,-695.81837055,0.0001327,2]
[406674794,1772064553631,-695.81837055,0.0001327,2]
[406674795,1772064553654,-695.81837055,0.0001327,2]
[406674796,1772064553677,-695.81837055,0.0001327,2]
[406674797,1772064553699,-695.81837055,0.0001327,2]
[406674798,1772064553721,-695.81837055,0.0001327,2]
[406674799,1772064553744,-695.81837055,0.0001327,2]
[406674800,1772064553767,-695.81837055,0.0001327,2]
[406674801,1772064553791,-695.81837055,0.0001327,2]
[406674802,1772064553814,-695.81837055,0.0001327,2]
[406674803,1772064553838,-695.81837055,0.0001327,2]
[406674804,1772064553862,-695.81837055,0.0001327,2]
[406674805,1772064553888,-695.81837055,0.0001327,2]
[406674806,1772064553913,-695.81837055,0.0001327,2]
[406674807,1772064553938,-695.81837055,0.0001327,2]
[406674808,1772064553962,-695.81837055,0.0001327,2]
[406674809,1772064553986,-695.81837055,0.0001327,2]
[406674810,1772064554009,-695.81837055,0.0001327,2]
[406674811,1772064554032,-695.81837055,0.0001327,2]
[406674812,1772064554056,-695.81837055,0.0001327,2]
[406674813,1772064554081,-695.81837055,0.0001327,2]
[406674814,1772064554103,-695.81837055,0.0001327,2]
[406674815,1772064554128,-695.81837055,0.0001327,2]
[406674816,1772064554156,-695.81837055,0.0001327,2]
[406674817,1772064554180,-695.81837055,0.0001327,2]
[406674818,1772064554203,-695.81837055,0.0001327,2]
[406674819,1772064554227,-695.81837055,0.0001327,2]
[406674820,1772064554251,-695.81837055,0.0001327,2]
[406674821,1772064554276,-695.81837055,0.0001327,2]
[406674822,1772064554300,-695.81837055,0.0001327,2]
[406674823,1772064554323,-695.81837055,0.0001327,2]
[406674824,1772064554346,-500.0,0.0001327,2]
[406674825,1772064554367,-500.0,0.0001327,2]
[406674826,1772064554389,-500.0,0.0001327,2]
[406674827,1772064554410,-500.0,0.0001327,2]
[406674828,1772064554432,-500.0,0.0001327,2]
[406674829,1772064554455,-500.0,0.0001327,2]
[406674830,1772064554481,-500.0,0.0001327,2]
[406674831,1772064554504,-500.0,0.0001327,2]
[406674832,1772064554528,-500.0,0.0001327,2]
[406674833,1772064554552,-500.0,0.0001327,2]
[406674834,1772064554575,-500.0,0.0001327,2]
[406674835,1772064554599,-500.0,0.0001327,2]
[406674836,1772064554621,-500.0,0.0001327,2]
[406674837,1772064554642,-500.0,0.0001327,2]
[406674838,1772064554666,-500.0,0.0001327,2]
[406674839,1772064554689,-500.0,0.0001327,2]
[406674840,1772064554710,-350.0,0.0001327,2]
[406674841,1772064554732,-500.0,0.0001327,2]
[406674842,1772064554755,-500.0,0.0001327,2]
[406674843,1772064554777,-500.0,0.0001327,2]
[406674844,1772064554801,-500.0,0.0001327,2]
[406674845,1772064554825,-500.0,0.0001327,2]
[406674846,1772064555000,-500.0,0.0001327,2]
[406674847,1772064555041,-500.0,0.0001327,2]
[406674848,1772064555066,-500.0,0.0001327,2]
[406674849,1772064555091,-500.0,0.0001327,2]
[406674850,1772064555114,-500.0,0.0001327,2]
[406674851,1772064555140,-500.0,0.0001327,2]